Cogmind - Beta 12 @@@ ROGUE MODE // 2023.04.21 @ 22:38:44 Player: Triffids Result: Self-destructed Performance ------------- Evolutions (2) 1000 Regions Visited (3) 600 Robots Destroyed (32) 160 Value Destroyed (844) 844 Prototype IDs (8) 160 Alien Tech Used (0) 0 Bonus (0) 0 TOTAL SCORE: 2764 Bonus ------- None Cogmind --------- Core Integrity 400/550 Matter 300/300 Energy 160/160 System Corruption 0% Temperature Hot (247) Movement Walking (120) Location -8/Materials Parts ------- > --- POWER (1) -------- Light Nuclear Core > --- PROPULSION (4) --- Carbon-fiber Leg Carbon-fiber Leg Carbon-fiber Leg Carbon-fiber Leg > --- UTILITY (4) ------ Medium Storage Unit Seismic Detector Hardened Medium Armor Plating Hacking Suite > --- WEAPON (2) ------- Spread Laser Gauss Rifle > --- INVENTORY (10) --- Advanced Visual Processing Unit Sensor Array Improved Signal Interpreter Advanced Targeting Computer Reactive Plating Spread Laser Gauss Rifle Grenade Launcher Greatsword Peak State ------------ > --- POWER ------------ Light Nuclear Core > --- PROPULSION ------- Carbon-fiber Leg Carbon-fiber Leg Carbon-fiber Leg Carbon-fiber Leg > --- UTILITY ---------- Medium Storage Unit Seismic Detector Hardened Medium Armor Plating Hacking Suite > --- WEAPON ----------- Spread Laser Gauss Rifle > --- INVENTORY -------- Advanced Visual Processing Unit Sensor Array Improved Signal Interpreter Advanced Targeting Computer Reactive Plating Spread Laser Gauss Rifle Grenade Launcher Greatsword [Rating: 31] Favorites ----------- Power Light Nuclear Core Engine Ion Engine Power Core Light Nuclear Core Propulsion Aluminum Leg Leg Aluminum Leg Utility Medium Storage Unit Device Seismic Detector Storage Medium Storage Unit Hackware Hacking Suite Protection Medium Armor Plating Weapon Spread Laser Energy Gun Spread Laser Ballistic Gun Gauss Rifle Launcher Grenade Launcher Build | -11 -10 -9 -8 ------- Run | Jun Mat Mat Mat Slots Evolved 4 | . . 2 2 Power . | . . . . Propulsion 2 | . . 2 . Utility 2 | . . . 2 Weapon . | . . . . Parts Attached 28 | 7 4 10 7 Power 3 | 1 1 . 1 Engine 1 | 1 . . . Core 2 | . 1 . 1 Reactor . | . . . . Propulsion 9 | 2 . 7 . Treads . | . . . . Leg 9 | 2 . 7 . Wheel . | . . . . Hover . | . . . . Flight . | . . . . Utility 8 | 2 1 1 4 Device 2 | 1 . . 1 Storage 2 | 1 1 . . Processor . | . . . . Hackware 1 | . . . 1 Protection 3 | . . 1 2 Artifact . | . . . . Weapon 8 | 2 2 2 2 Energy Gun 6 | 2 1 2 1 Energy Cannon . | . . . . Ballistic Gun 1 | . . . 1 Ballistic Cannon . | . . . . Launcher 1 | . 1 . . Special Weapon . | . . . . Impact Weapon . | . . . . Slashing Weapon . | . . . . Piercing Weapon . | . . . . Special Melee Weapon . | . . . . Unidentified Prototypes . | . . . . Parts Lost 1 | . . . 1 Power 1 | . . . 1 Propulsion . | . . . . Utility . | . . . . Weapon . | . . . . Highest Loss Streak 1 | . . . 1 To Critical Strikes . | . . . . Average Slot Usage (%) 99 | . 100 99 99 Engine 1 | . 6 . . Core 9 | . 7 11 8 Leg 36 | . 28 43 36 Device 7 | . 14 . 9 Storage 11 | . 14 11 9 Hackware 3 | . . . 9 Protection 6 | . . 10 9 Energy Gun 21 | . 27 22 15 Naked Turns . | . . . . Heaviest Build 32 | 15 20 28 32 Greatest Support 60 | 20 20 60 60 Greatest Overweight (x) 2 | 1 . 2 1 Average Overweight (x) . | . . . . Largest Inventory Capacity 10 | 8 10 10 10 Average Capacity 9 | 7 9 10 10 Most Carried 10 | 5 8 10 10 Average Carried 8 | 2 5 9 9 Final Capacity 10 | 8 10 10 10 Final Carried 10 | 2 8 10 10 Class Distribution -------------------- 92% | Mutant 7% | Scavenger-Mutant Dominant Class ---------------- Mutant | -10/Materials Mutant | -9/Materials Mutant | -8/Materials Resources | -11 -10 -9 -8 ----------- Run | Jun Mat Mat Mat Matter Collected 591 | 242 86 88 175 Remotely . | . . . . Salvage Created 979 | 15 180 246 538 Parts 58 | 1 13 21 23 Haulers Intercepted 1 | . . . 1 Recyclers Shooed 2 | 1 1 . . Parts Field Recycled . | . . . . Retrieved Matter . | . . . . Parts Self-Destructed . | . . . . Prevented . | . . . . Kills | -11 -10 -9 -8 ------- Run | Jun Mat Mat Mat Combat Hostiles Destroyed 24 | . 6 9 9 Guns 22 | . 4 9 9 AOE 2 | . 2 . . Classes Destroyed 10 | 1 3 2 4 Worker 3 | . 1 . 2 Tunneler 1 | 1 . . . Hauler 1 | . . . 1 Recycler 1 | . . . 1 Operator 1 | . . 1 . Watcher 1 | . . . 1 Swarmer 7 | . 3 4 . Grunt 13 | . 3 4 6 Duelist 1 | . . . 1 Sentry 3 | . . 1 2 Best Kill Streak 7 | 1 3 6 7 Combat Bots Only 6 | . 3 6 6 Max Kills in Single Turn 2 | 1 2 1 2 Gunslinging . | . . . . Exploded 2 | . 2 . . Melee . | . . . . Uniques/NPCs Destroyed . | . . . . Combat | -11 -10 -9 -8 -------- Run | Jun Mat Mat Mat Damage Taken 1145 | . 140 179 826 Core 194 | . 22 22 150 Absorbed by Shields . | . . . . Core Remaining (%) 95 | 100 91 94 . Volleys Fired 75 | 6 15 19 35 Largest 2 | 2 2 2 2 Hottest 130 | 100 100 130 130 Shots Fired 147 | 12 30 38 67 Gun 145 | 12 28 38 67 Cannon . | . . . . Launcher 2 | . 2 . . Special . | . . . . Kinetic 24 | . . . 24 Thermal 121 | 12 28 38 43 Explosive 2 | . 2 . . Electromagnetic . | . . . . Robot Hit Streak 14 | 3 8 5 14 Robot Miss Streak 12 | 4 2 12 10 Penetration Max 1 | . . . 1 Secondary Targets 2 | . 1 . 1 Max Gunslinging Chain 1 | . 1 . 1 Shots Hit Robots 112 | 6 20 30 56 Core Hits 113 | 1 14 32 66 Critical Kills 1 | . . . 1 Critical Parts Destroyed . | . . . . Critical Strikes 1 | . . . 1 Destroy 1 | . . . 1 Melee Attacks . | . . . . Impact . | . . . . Slashing . | . . . . Piercing . | . . . . Sneak Attacks . | . . . . Combat Hostiles . | . . . . Follow-up Attacks . | . . . . Damage Inflicted 1823 | 75 498 318 932 Guns 1590 | 75 265 318 932 Cannons . | . . . . Explosions 233 | . 233 . . Melee . | . . . . Ramming . | . . . . Kinetic 384 | . . . 384 Thermal 1206 | 75 265 318 548 Explosive 233 | . 233 . . Electromagnetic . | . . . . Impact . | . . . . Slashing . | . . . . Piercing . | . . . . Highest Corruption . | . . . . Average Corruption . | . . . . Corruption Purged . | . . . . Corruption Blocked . | . . . . Overload Shots . | . . . . Overflow Damage 50 | . 50 . . Projectiles . | . . . . Explosions 50 | . 50 . . Melee . | . . . . Knockbacks . | . . . . Impact . | . . . . Kinetic . | . . . . Secondary . | . . . . Self-Inflicted Damage . | . . . . Shots . | . . . . Rammed . | . . . . Targets Rammed . | . . . . Kicked . | . . . . Crushed . | . . . . Highest Temperature 368 | 216 273 368 314 Average Temperature 113 | 115 87 102 130 Received Heat Transfer 609 | . 57 75 477 Effects 7 | . . 1 6 Shutdowns 1 | . . 1 . Interference 5 | . . . 5 Damage (minor) 1 | . . . 1 Siege Activations . | . . . . Robots Corrupted . | . . . . Combat Hostiles . | . . . . Parts Fried . | . . . . Impact Corruptions . | . . . . Robots Melted . | . . . . Combat Hostiles . | . . . . Parts Melted 4 | . 2 2 . Heat Transferred 2133 | 222 777 449 685 Parts Sabotaged . | . . . . Parts Stolen . | . . . . Parts Stripped . | . . . . Power Chain Reactions . | . . . . Missiles Intercepted . | . . . . Alert | -11 -10 -9 -8 ------- Run | Jun Mat Mat Mat Peak Influence 274 | 5 197 274 200 Initial 61 | . 3 . 61 Average 88 | 2 67 99 104 Maximum Alert Level 1 | . . 1 1 Low Security (%) 94 | 100 100 86 96 Level 1 5 | . . 13 3 Level 2 . | . . . . Level 3 . | . . . . Level 4 . | . . . . Level 5 . | . . . . High Security . | . . . . Max Security . | . . . . Squads Dispatched 7 | . 1 2 4 Investigation 2 | . . 1 1 Extermination . | . . . . Reinforcement 4 | . 1 1 2 Assault . | . . . . Garrison 1 | . . . 1 Intercept . | . . . . Searches Triggered . | . . . . Construction Impeded . | . . . . Haulers Reinforced . | . . . . Active Scanning Responses . | . . . . Cargo Convoy Interrupts . | . . . . Stealth | -11 -10 -9 -8 --------- Run | Jun Mat Mat Mat Distress Signals 2 | . . 1 1 Communications Jammed . | . . . . Distress Signals . | . . . . Times Spotted 44 | . 13 17 14 Peak Tracking Total 4 | . 4 4 4 Tactical Retreats 3 | . . 2 1 Traps | -11 -10 -9 -8 ------- Run | Jun Mat Mat Mat Traps Triggered . | . . . . Indirectly . | . . . . Trap Hack Attempts . | . . . . Triggered . | . . . . Disarmed . | . . . . Reprogrammed . | . . . . Reused . | . . . . Traps Extracted . | . . . . Installed . | . . . . Triggered . | . . . . Machines | -11 -10 -9 -8 ---------- Run | Jun Mat Mat Mat Machines Disabled . | . . . . Max in Single Turn . | . . . . Machines Repaired . | . . . . Machines Sabotaged . | . . . . Overloaded Fab Kills . | . . . . Hacking | -11 -10 -9 -8 --------- Run | Jun Mat Mat Mat Machines Accessed 8 | . 3 4 1 Terminals 7 | . 3 4 . Fabricators . | . . . . Repair Stations . | . . . . Recycling Units . | . . . . Scanalyzers . | . . . . Garrison Access 1 | . . . 1 Total Hacks 24 | . 10 12 2 Successful 9 | . 1 8 . Failed 15 | . 9 4 2 Catastrophic 2 | . 1 1 . Database Lockouts . | . . . . Manual 11 | . 6 5 . Terminals 22 | . 10 12 . Fabricators . | . . . . Repair Stations . | . . . . Recycling Units . | . . . . Scanalyzers . | . . . . Garrison Access 2 | . . . 2 Terminal Hacks 6 | . . 6 . Record 1 | . . 1 . Prototype ID Bank 4 | . . 4 . Branch Access Points 1 | . . 1 . Fabricator Hacks . | . . . . Repair Station Hacks . | . . . . Recycling Unit Hacks . | . . . . Scanalyzer . | . . . . Garrison Access Hacks . | . . . . Unauthorized Hacks 3 | . 1 2 . Terminals 3 | . 1 2 . Botnet 3 | . 1 2 . Fabricators . | . . . . Repair Stations . | . . . . Recycling Units . | . . . . Scanalyzers . | . . . . Garrison Access . | . . . . Data Cores Recovered . | . . . . Used . | . . . . Hacking Detections 8 | . 3 4 1 Full Trace Events 2 | . . 1 1 Feedback Events . | . . . . Feedback Blocked . | . . . . Robot Schematics Acquired . | . . . . Robots Built . | . . . . Authchips . | . . . . Time . | . . . . Total Robot Build Rating . | . . . . Part Schematics Acquired . | . . . . Parts Built . | . . . . Authchips . | . . . . Time . | . . . . Total Part Build Rating . | . . . . Parts Repaired . | . . . . Time . | . . . . Parts Recycled . | . . . . Recycled Matter . | . . . . Retrieved Matter . | . . . . Retrieved Components . | . . . . Parts Scanalyzed . | . . . . Part Schematics Acquired . | . . . . Parts Damaged . | . . . . Bothacking | -11 -10 -9 -8 ------------ Run | Jun Mat Mat Mat Used RIF Installer . | . . . . Robots Hacked . | . . . . Non-combat . | . . . . Combat . | . . . . Robot Hacks Applied . | . . . . Relay Couplers Released . | . . . . Fabnet Peak Effective % . | . . . . Robots Rewired . | . . . . Allies Hacked . | . . . . Hacks Repelled . | . . . . Allies | -11 -10 -9 -8 -------- Run | Jun Mat Mat Mat Total Allies . | . . . . Largest Group . | . . . . Highest-Rated Group . | . . . . Highest-Rated Ally . | . . . . Total Orders . | . . . . Ally Attacks . | . . . . Total Damage . | . . . . Kills . | . . . . Allies Corrupted . | . . . . Allies Melted . | . . . . Intel | -11 -10 -9 -8 ------- Run | Jun Mat Mat Mat Robot Analysis Total . | . . . . Derelict Logs Recovered . | . . . . Drone Launches . | . . . . Drone Recoveries . | . . . . Exploration | -11 -10 -9 -8 ------------- Run | Jun Mat Mat Mat Turns Passed 1584 | 68 440 468 608 Spaces Moved 1004 | 37 316 305 346 Core 16 | 16 . . . Treads . | . . . . Legs 988 | 21 316 305 346 Wheels . | . . . . Hover . | . . . . Flight . | . . . . Fastest Speed 50 | 50 120 120 120 Average Speed 119 | 99 120 120 121 Slowest Speed 260 | 120 120 260 190 Overloaded Moves . | . . . . Propulsion Burnouts . | . . . . Robots Hopped . | . . . . Cave-ins Triggered . | . . . . Exploration Rate (%) 29 | 3 56 29 31 Regions Visited 3 Branch Regions . Pre-discovered Areas . | . . . . Known Exits Taken . | . . . . Unknown Exits Taken 3 | 1 1 1 . Scrap Searched . | . . . . Spaces Dug . | . . . . Terrain Destroyed 12 | . 12 . . Melee . | . . . . Projectile . | . . . . AOE 12 | . 12 . . Terrain Rammed . | . . . . Walls Destroyed . | . . . . Machines Disabled . | . . . . Actions | -11 -10 -9 -8 --------- Run | Jun Mat Mat Mat Total 1240 | 54 345 372 469 Wait 94 | . 6 22 66 Move 1001 | 36 315 304 346 Hop . | . . . . Pick Up 24 | 5 5 7 7 Fast Attach 7 | 4 . . 3 Attach 7 | 3 . 2 2 Detach . | . . . . Swap 14 | . 4 8 2 Drop 18 | . . 10 8 Fire 75 | 6 15 19 35 Melee . | . . . . Ram . | . . . . Kick . | . . . . Crush . | . . . . Escape Stasis . | . . . . Rewire . | . . . . Trap . | . . . . Miscellaneous . | . . . . Route ------- -11/Junkyard -10/Materials (discovered 2 exits: *Mat / [*Min]) -9/Materials (discovered 2 exits: *Mat / Min) -8/Materials (discovered 1 exit: [*Sto]) History --------- Turn | Location | Event 17 | -11/Junkyard | Discovered new exit (range 15) 69 | -11/Junkyard | Entered Materials 315 | -10/Materials | Build established: Mutant 333 | -10/Materials | Discovered new exit (range 12) 494 | -10/Materials | Discovered new exit (range 10) 509 | -10/Materials | Entered another Materials area 509 | -9/Materials | Evolved 2 slots: Propulsion x2 887 | -9/Materials | Discovered new exit (range 15) 931 | -9/Materials | Identified exit to Mines 977 | -9/Materials | Entered another Materials area 977 | -8/Materials | Evolved 2 slots: Utility x2 1116 | -8/Materials | Garrison activated, responded to threat 1412 | -8/Materials | Discovered new exit (range 16) 1585 | -8/Materials | Self-destructed Last Messages --------------- 01548_ Slug penetrates Wall. 01551_ Slug penetrates G-50 Soldier. 01554_ Slug penetrates G-47 Trooper. 01554_ K-01 Serf destroyed. 01555_ K-01 Serf collects debris. 01559_ Acquired 32 matter. 01565_ K-01 Serf collects debris. 01569_ Slug penetrates G-47 Trooper. 01570_ Acquired 4 matter. 01571_ K-01 Serf cleans the Nuclear Reactor. 01572_ G-47 Trooper destroyed. 01573_ Acquired 4 matter. 01575_ Overheating: System interference. 01575_ Gauss Rifle temporarily disabled. 01575_ Seismic Detector temporarily disabled. 01575_ K-01 Serf collects debris. 01577_ Critical hit (Burn: +37). 01578_ K-01 Serf collects debris. 01581_ Overheating: Gauss Rifle damaged (-46). 01584_ K-01 Serf cleans the Nuclear Reactor. Map ----- +----------------------------------------------------+ | ?????????????????????????????????????????????????? | | ?????????????????????????????????????????????????? | | ?????????????????????????????????????????????????? | | ?????????????????????????????????????????????????? | | ?????????????????????????????????????????????????? | | ?????????????????????????????????????????????????? | | ?????????????????????????????????????????????????? | | ?????????????????????????????????????????????????? | | #######??????????????????????????????????????????? | | """ #??????????????????????????????????????????? | | """ !#??????????????????????????????????????????? | | """ !#??????????????????????????????????????????? | | #??????????????????????????????????????????? | | #??????????????????????????????????????????? | | #??????????????????????????????????????????? | | ############?????????????????????????????????????? | | """" #??????????????????????????#??????????? | | ""R" """ #????????????????????????? #??????????? | | "" " """ #?????????#######???????? #??????#???? | | """ #?????????# ######## ### ???? | | !=########### / ==% ??? | | !!!+ =!= %= < ??? | | !!%###########%!![* / ??? | | #######+####?????????# u%%%######## ##### ??????? | | #?????? ##???????#######g#######?????????????????? | | ##### #???????# =%@ ! #?????????????????? | | #???????# %=k #?????????????????? | | T #???????# """ """ """ #?????????????????? | | ##### #???????# """ """ """ #?????????????????? | | ###???? ##???????# """ """ """ #?????????????????? | | " #??????????????# #?????????????????? | | " #??????????????###############?????????????????? | | " #??????????????????????????????????????????????? | | #??????????????????????????????????????????????? | | #??????????????????????????????????????????????? | | #??????????????????????????????????????????????? | | #??????????????????????????????????????????????? | | #??????????????????????????????????????????????? | | ###??????????????????????????????????????????????? | | ?????????????????????????????????????????????????? | | ?????????????????????????????????????????????????? | | ?????????????????????????????????????????????????? | | ?????????????????????????????????????????????????? | | ?????????????????????????????????????????????????? | | ?????????????????????????????????????????????????? | | ?????????????????????????????????????????????????? | | ?????????????????????????????????????????????????? | | ?????????????????????????????????????????????????? | | ?????????????????????????????????????????????????? | | ?????????????????????????????????????????????????? | +----------------------------------------------------+ Best States ------------- Heat Dissipation 31 Energy Generation 14 Energy Capacity 250 Matter Stores 300 Matter Capacity 300 Sight Range 16 Terrain Scan Density 10 Armor Coverage 225 Resistance: KI 20 Evasion (%) 55 Offensive Hacking 10 Item Schematics ----------------- None Robot Schematics ------------------ None Fabricated ------------ Nothing Alien Tech Used ----------------- None Achievements -------------- None Challenges ------------ None Game ------ Seed EnergyDataPit Manual? 0 Play Time 00:21:48 Cumulative 190.3 hours Start 2023.04.09 @ 15:00:16 End 2023.04.21 @ 22:38:44 Sessions 3 Manual Loads 0 Difficulty Rogue Special Mode None Game No. 284 Rogue 284 Adventurer 0 Explorer 0 Win Type - Total 0 Types 0/0/0/0/0/0/0/0/0 Lore% 48 Gallery% 55 Achievement% 38 Wizard Run 0 Options --------- ASCII 0 Keyboard 1 Movement Vi Keybinds 0 Fullscreen 0 Font 20/SmallcapsGlow Map View 76x50 Tactical HUD 1 Map Filters NONE Filters NONE Steam 1 RUN: fd557a64-1b48-41a3-907e-758c6cc1ccd9